bitfinex/quotes_ETHUSD_20240703
["timestamp","ask_amount","ask_price","bid_price","bid_amount"]
[1719985880520,0.06261278,3367.9,3367.8,1.633]
[1719985880891,2.3362,3368.1,3367.8,1.633]
[1719985881091,2.3362,3368.1,3368.0,1.083]
[1719985881321,2.3362,3368.1,3368.0,1.633]
[1719985883627,2.39894558,3368.1,3368.0,1.633]
[1719985896420,2.39894558,3368.1,3368.0,0.55]
[1719985896616,2.39894558,3368.1,3368.0,1.633]
[1719985896905,0.06274558,3368.1,3368.0,1.633]
[1719985897118,2.3315,3368.0,3367.4,1.48481]
[1719985897310,2.3315,3368.0,3367.9,1.083]
[1719985897708,2.39436174,3368.0,3367.9,1.083]
[1719985907526,0.06286174,3368.0,3367.9,1.083]
[1719985907767,2.3532,3368.2,3367.9,1.633]
[1719985908067,2.3532,3368.2,3368.1,1.083]
[1719985908230,2.41365968,3368.2,3368.1,1.083]
[1719985909064,0.06045968,3368.2,3368.1,1.083]
[1719985909328,9.7983,3368.4,3368.1,1.633]
[1719985909528,2.3183,3368.4,3368.3,1.083]
[1719985911256,2.55013,3368.4,3368.3,1.083]
[1719985912662,4.10767476,3368.4,3367.3,1.48484]
[1719985912838,2.469,3368.3,3368.1,1.083]
[1719985913663,2.52837814,3368.2,3368.1,1.083]
[1719985913965,2.80439895,3368.2,3368.1,1.083]
[1719985915165,2.80439895,3368.2,3367.1,0.31053007]
[1719985915386,2.80439895,3368.2,3367.7,1.083]
[1719985915741,2.80439895,3368.2,3367.9,1.083]
[1719985917238,2.80439895,3368.2,3367.1,4.79548007]
[1719985917445,2.52837814,3368.2,3368.1,1.083]
[1719985925381,0.05937814,3368.2,3368.1,1.083]
[1719985926277,2.2623,3368.4,3368.1,1.083]
[1719985926583,2.2623,3368.4,3368.3,1.083]
[1719985928677,2.32157855,3368.4,3368.3,1.083]
[1719985929586,0.05927855,3368.4,3368.3,1.083]
[1719985930064,2.4743,3368.6,3368.3,1.083]
[1719985930265,0.05927855,3368.4,3367.8,1.48464]
[1719985930454,2.4743,3368.6,3368.3,1.083]
[1719985930652,0.99543,3368.5,3367.8,1.48464]
[1719985930853,2.4743,3368.6,3368.5,1.083]
[1719985934957,2.4743,3368.6,3367.4,0.31051787]
[1719985935174,2.4743,3368.6,3368.2,1.083]
[1719985935491,2.4743,3368.6,3368.1,1.083]
[1719985936059,13.483,3368.8,3367.4,0.31051787]
[1719985936260,2.80388244,3368.6,3367.8,1.083]
[1719985936559,2.4937,3368.5,3368.0,1.083]
[1719985938978,2.4937,3368.5,3368.2,1.083]
[1719985943512,2.4812,3368.3,3368.2,1.083]
[1719985943691,2.76606462,3368.3,3368.2,1.083]
[1719985944210,2.82332834,3368.3,3368.2,1.083]
[1719985947087,2.53846372,3368.3,3368.2,1.083]
[1719985947418,0.05726372,3368.3,3368.2,1.083]
[1719985947820,2.3648,3368.6,3368.2,1.083]
[1719985947982,2.3648,3368.6,3368.5,1.083]
[1719985949991,2.3648,3368.6,3368.3,1.083]
[1719985950201,0.23648,3368.5,3368.3,1.083]
[1719985950713,2.3392,3368.4,3368.3,1.083]
[1719985950919,2.3392,3368.4,3368.1,1.083]
[1719985954043,2.3392,3368.4,3368.3,1.083]
[1719985954328,3.0,3369.0,3368.3,1.083]
[1719985954329,9.7779,3368.7,3368.3,1.083]
[1719985954533,9.7779,3368.7,3367.5,0.31051953]
[1719985954534,9.7779,3368.7,3368.5,1.083]
[1719985958548,0.05542714,3368.6,3368.5,1.083]
[1719985959494,0.05542714,3368.6,3367.7,1.48467]
[1719985959831,0.05542714,3368.6,3368.4,1.083]
[1719985960039,1.03875985,3368.6,3368.4,1.083]
[1719985961620,0.05542714,3368.6,3368.4,1.083]
[1719985971548,0.05542714,3368.6,3368.2,1.48447]
[1719985971713,0.05542714,3368.6,3368.5,1.083]
[1719985976785,7.48,3369.1,3368.5,2.03434]
[1719985977068,7.48,3369.1,3369.0,1.083]
[1719985977268,0.97757,3369.1,3369.0,1.083]
[1719985977566,2.2957,3369.2,3369.0,1.083]
[1719985978637,2.2957,3369.2,3369.1,1.083]
[1719985985747,2.2957,3369.2,3368.3,1.48442]
[1719985985946,2.2957,3369.2,3368.4,0.55]
[1719985986142,4.92,3369.2,3367.8,0.31042117]
[1719985986342,2.4992,3369.0,3368.6,1.083]
[1719985987074,2.4992,3369.0,3368.5,1.083]
[1719985988578,2.4368,3368.8,3368.5,1.083]
[1719985988992,0.05343237,3368.7,3368.5,1.083]
[1719985989166,2.4368,3368.8,3368.5,1.083]
[1719985989371,0.29711237,3368.7,3368.5,1.083]
[1719985992194,0.05343237,3368.7,3368.5,1.083]
[1719985992393,7.48,3368.9,3368.5,1.083]
[1719985992563,7.48,3368.9,3368.8,1.083]
[1719985993670,2.3642,3368.8,3367.8,0.31042117]
[1719985993868,3.34862,3368.8,3368.6,1.083]
[1719985999122,7.48,3368.9,3368.6,1.083]
[1719985999435,7.48,3368.9,3368.8,1.083]
[1719986001733,2.2628,3369.2,3368.8,1.083]
[1719986001880,2.2628,3369.2,3369.0,1.083]
[1719986003487,0.05334393,3369.1,3369.0,1.083]
[1719986003693,1.03295832,3369.1,3369.0,1.083]
[1719986006025,1.03295832,3369.1,3368.0,1.48453]
[1719986006323,1.03295832,3369.1,3368.9,1.083]
[1719986007832,2.4319,3369.0,3367.9,0.31042705]
[1719986008036,2.4319,3368.8,3368.6,1.083]
[1719986008239,0.05332733,3368.7,3368.6,1.083]
[1719986008443,2.4319,3368.8,3368.6,1.083]
[1719986008652,0.05332733,3368.7,3368.6,1.083]
[1719986008817,0.38569865,3368.7,3368.6,1.083]
[1719986011457,0.05332733,3368.7,3368.6,1.083]
[1719986011961,2.4467,3369.1,3368.6,1.083]
[1719986012173,7.48,3369.3,3368.1,1.48451]
[1719986012174,0.0532582,3368.7,3368.1,1.48451]
[1719986012465,7.48,3369.3,3368.6,1.083]
[1719986012670,0.987,3369.2,3368.2,0.55]
[1719986012835,7.48,3369.3,3369.2,1.083]
[1719986016628,2.39,3369.4,3369.2,1.083]
[1719986018352,2.39,3369.4,3368.2,0.55]
[1719986018541,0.05139722,3369.3,3369.1,1.083]
[1719986018735,0.24413972,3369.2,3369.1,1.083]
[1719986019256,0.29553694,3369.2,3369.1,1.083]
[1719986022654,2.3106,3369.1,3368.9,1.083]
[1719986023091,0.05110926,3369.0,3368.9,1.083]
[1719986027686,0.24413972,3369.2,3368.9,1.083]
[1719986027848,0.24413972,3369.2,3369.1,1.083]
[1719986028270,0.24413972,3369.2,3368.1,0.55]
[1719986028469,2.74537397,3369.1,3369.0,1.083]
[1719986029248,2.04987397,3369.1,3367.9,0.31042705]
[1719986029448,2.3728,3369.0,3368.8,1.083]
[1719986031071,2.3728,3369.0,3367.9,0.31042705]
[1719986031281,0.77998137,3368.9,3368.8,1.083]
[1719986033497,0.8310851,3368.9,3368.8,1.083]
[1719986033863,0.8310851,3368.9,3367.9,0.31042705]
[1719986034057,0.8310851,3368.9,3368.8,1.083]
[1719986036489,0.8310851,3368.9,3367.9,0.31042705]
[1719986036490,3.3002851,3368.9,3367.9,0.31042705]
[1719986036689,2.4957,3368.7,3368.6,1.083]
[1719986037098,2.54672633,3368.7,3368.6,1.083]
[1719986039475,1.787,3368.5,3367.9,0.31042705]
[1719986039702,2.95320263,3368.4,3368.0,1.083]
[1719986039889,3.00410178,3368.4,3368.0,1.083]
[1719986040090,0.51439223,3368.3,3368.0,1.083]
[1719986040291,0.51439223,3368.2,3368.0,1.083]
[1719986040469,0.79241018,3368.3,3368.0,1.083]
[1719986040676,0.05089915,3368.1,3368.0,1.083]
[1719986040881,0.51439217,3368.1,3368.0,1.083]
[1719986041212,0.56524205,3368.1,3368.0,1.083]
[1719986041908,0.93661727,3368.1,3368.0,1.083]
[1719986042275,2.3485,3368.0,3367.9,0.31042705]
[1719986042479,2.3485,3368.0,3366.4,8.0141188]
[1719986042480,2.86288991,3368.0,3367.5,1.083]
[1719986042681,0.51438991,3367.9,3367.5,1.083]
[1719986043100,2.3485,3368.0,3367.5,1.083]
[1719986043299,0.05083278,3367.8,3367.5,1.083]
[1719986043497,0.51445998,3367.7,3367.5,1.083]
[1719986043701,0.05083278,3367.7,3367.5,1.083]
[1719986044113,0.27198752,3367.9,3367.5,1.083]
[1719986044301,0.51446216,3367.8,3367.7,1.083]
[1719986044501,0.86509465,3367.8,3367.7,1.083]
[1719986045312,0.35063249,3367.8,3367.7,1.083]
[1719986046096,0.37137522,3368.1,3367.7,1.083]
[1719986046420,0.37137522,3368.1,3367.9,1.083]
[1719986046918,0.51441826,3368.0,3367.2,0.3104959]
[1719986047092,0.37137522,3368.1,3367.9,1.083]
[1719986048393,0.05056449,3368.0,3367.9,1.083]
[1719986048727,0.32003846,3368.0,3367.9,1.083]
[1719986049788,0.83447005,3368.0,3367.9,1.083]
[1719986051120,0.83447005,3368.0,3367.7,1.083]
[1719986051320,0.32003846,3368.0,3367.7,1.083]
[1719986052227,0.32003846,3368.0,3367.9,1.083]
[1719986057433,0.83448096,3368.0,3367.9,1.083]
[1719986057633,0.32003846,3368.0,3367.9,1.083]
[1719986057838,0.83447729,3368.0,3367.9,1.083]
[1719986058287,0.83447492,3368.0,3367.9,1.083]
[1719986059433,0.83447659,3368.0,3367.7,1.083]
[1719986059730,0.55761796,3367.9,3367.7,1.083]
[1719986060160,0.05006783,3367.8,3367.7,1.083]
[1719986060344,0.05006783,3367.8,3367.2,0.3104959]
[1719986060674,0.05006783,3367.8,3367.7,1.083]
[1719986063169,2.59897397,3368.0,3367.7,1.083]
[1719986063364,0.05007059,3367.8,3367.7,1.083]
[1719986063868,2.59897397,3368.0,3367.7,1.083]
[1719986064035,0.56451737,3367.9,3367.2,0.3104959]
[1719986064231,0.05007059,3367.9,3367.8,1.083]
[1719986064435,1.07631271,3367.9,3367.8,1.083]
[1719986066071,1.07629355,3367.9,3367.8,1.083]
[1719986066447,0.56186551,3367.9,3367.8,1.083]
[1719986066668,1.07629269,3367.9,3367.8,1.083]
[1719986068463,0.56186551,3367.9,3367.8,1.083]
[1719986068773,1.07630002,3367.9,3367.8,1.083]
[1719986069967,0.5645051,3367.9,3367.8,1.083]
[1719986072598,0.56449466,3367.9,3367.8,1.083]
[1719986075817,0.05007059,3367.9,3367.8,1.083]
[1719986075981,0.56448321,3367.9,3367.8,1.083]
[1719986079024,0.05007059,3367.9,3367.8,1.083]
[1719986079181,0.56444954,3367.9,3367.8,1.083]
[1719986079383,0.51437895,3367.9,3367.8,1.083]
[1719986079622,0.56452168,3367.9,3367.8,1.083]
[1719986080228,0.05014253,3367.9,3367.8,1.083]
[1719986080522,7.48,3368.4,3367.8,1.083]
[1719986080730,0.05014529,3367.9,3367.5,1.48476]
[1719986080938,7.48,3368.4,3367.8,1.083]
[1719986081094,0.51435379,3368.3,3368.2,1.083]
[1719986082292,0.51433437,3368.3,3367.6,2.09411361]
[1719986082487,0.51433437,3368.2,3367.6,2.03473]
[1719986082733,0.51433437,3368.6,3368.1,1.083]
[1719986082914,0.51433437,3368.6,3368.4,1.083]
[1719986083090,1.33372344,3368.5,3368.4,1.083]
[1719986083307,1.84805781,3368.5,3368.4,1.083]
[1719986085292,0.51433437,3368.5,3368.4,1.083]
[1719986085492,9.8229,3368.8,3368.4,1.083]
[1719986085693,0.51430833,3368.5,3368.4,1.083]
[1719986086134,0.51430833,3368.7,3368.4,1.083]
[1719986086344,0.51430833,3368.6,3368.4,1.083]
[1719986086648,0.51430833,3368.5,3368.4,1.083]
[1719986086823,0.51430833,3368.7,3368.4,1.083]
[1719986087024,0.51430833,3368.6,3368.4,1.083]
[1719986088834,7.48,3368.8,3368.4,1.083]
[1719986089029,0.51429179,3368.7,3368.6,1.083]
[1719986091536,9.8366,3369.1,3368.6,1.083]
[1719986091701,0.51427578,3369.0,3368.6,1.083]
[1719986091896,0.51427578,3368.9,3368.8,1.083]
[1719986092228,0.51427298,3368.9,3368.8,1.083]
[1719986092641,2.3566,3369.1,3368.8,1.083]
[1719986092953,0.74993231,3369.0,3368.8,1.083]
[1719986093245,0.51427231,3368.9,3368.8,1.083]
[1719986093743,0.56470796,3368.9,3368.8,1.083]
[1719986095242,0.56470917,3368.9,3368.8,1.083]
[1719986098445,0.05043565,3368.9,3368.8,1.083]
[1719986098619,0.56470832,3368.9,3368.8,1.083]
[1719986100812,0.56470136,3368.9,3368.8,1.083]
[1719986101005,0.05043565,3368.9,3368.8,1.083]
[1719986101211,0.5647022,3368.9,3368.8,1.083]
[1719986103371,0.04883189,3368.9,3368.8,1.083]
[1719986103552,7.48,3369.5,3368.8,1.083]
[1719986103722,0.748,3369.4,3369.0,1.083]
[1719986103922,0.04883189,3369.3,3369.0,1.083]
[1719986106448,2.29893189,3369.3,3369.0,1.083]
[1719986108773,2.29893189,3369.3,3368.5,2.3566]
[1719986108924,2.29893189,3369.3,3368.9,1.083]
[1719986109129,1.05269319,3369.2,3368.2,3.3521]
[1719986109330,1.05269319,3369.2,3368.8,1.083]
[1719986109679,0.0489093,3369.1,3368.8,1.083]
[1719986110044,2.2679,3369.0,3368.0,3.84113]
[1719986110230,2.2679,3369.0,3368.1,0.55]
[1719986110431,2.2679,3369.0,3368.6,1.083]
[1719986110625,0.0489093,3368.9,3368.6,1.083]
[1719986111851,0.0489093,3368.9,3368.0,2.3566]
[1719986112166,0.0489093,3368.9,3368.6,1.083]
[1719986115780,0.0489093,3368.9,3368.8,1.083]
[1719986120592,2.63100257,3369.0,3368.8,1.083]
[1719986120799,0.04881805,3368.9,3368.8,1.083]
[1719986122208,0.42206943,3368.9,3368.8,1.083]
[1719986122498,0.42206943,3368.9,3368.6,1.083]
[1719986130179,1.55733233,3368.8,3368.6,1.083]
[1719986130372,0.04881528,3368.8,3368.6,1.083]
[1719986132219,2.4538,3368.6,3367.8,0.31044541]
[1719986132391,2.4538,3368.6,3368.5,1.083]
[1719986132725,3.48450514,3368.6,3368.5,1.083]
[1719986132921,2.4538,3368.6,3368.5,1.083]
[1719986133080,4.01128963,3368.6,3368.5,1.083]
[1719986134079,2.4538,3368.6,3368.5,1.083]
[1719986134283,4.0113026,3368.6,3368.5,1.083]
[1719986137401,4.01117064,3368.6,3368.5,1.083]
[1719986138156,1.55737064,3368.6,3368.5,1.083]
[1719986138449,0.04874618,3368.6,3368.5,1.083]
[1719986138729,9.7317,3369.1,3368.5,1.083]
[1719986138936,0.04874618,3368.6,3368.3,2.3566]
[1719986139142,12.18077919,3369.1,3368.5,1.083]
[1719986139316,1.55736989,3369.0,3368.8,1.083]
[1719986139511,4.09379399,3368.9,3368.8,1.083]
[1719986140130,7.48,3369.1,3368.8,1.083]
[1719986140451,1.55721678,3369.0,3368.7,2.3566]
[1719986140617,7.48,3369.1,3368.9,1.083]
[1719986140817,1.5571933,3369.0,3368.9,1.083]
[1719986141145,7.48,3369.1,3368.9,1.083]
[1719986141629,2.2967,3369.5,3368.9,1.083]
[1719986141823,2.53481443,3369.4,3369.1,1.083]
[1719986142046,1.55714443,3369.3,3369.1,1.083]
[1719986143851,0.97767,3369.4,3369.1,1.083]
[1719986144041,1.55714167,3369.3,3369.1,1.083]
[1719986144434,1.55717864,3369.2,3369.1,1.083]
[1719986147181,0.97767,3369.4,3369.1,1.083]
[1719986147332,2.63264116,3369.3,3369.1,1.083]
[1719986147538,1.55720386,3369.2,3369.1,1.083]
[1719986150490,2.2967,3369.5,3369.1,1.083]
[1719986150777,1.55717377,3369.4,3369.1,1.083]
[1719986150947,1.43338738,3369.3,3369.1,1.083]
[1719986151154,1.55717377,3369.2,3369.1,1.083]
[1719986153484,1.606025,3369.2,3369.1,1.083]
[1719986153684,0.04885123,3369.2,3369.1,1.083]
[1719986153867,1.60605775,3369.2,3369.1,1.083]
[1719986155262,2.13967226,3369.2,3369.1,1.083]
[1719986157083,2.13968724,3369.2,3369.1,1.083]
[1719986157444,0.58246574,3369.2,3369.1,1.083]
[1719986157673,2.13968826,3369.2,3369.1,1.083]
[1719986157864,1.60607375,3369.2,3369.1,1.083]
[1719986160091,1.60600321,3369.2,3369.1,1.083]
[1719986160292,1.60599874,3369.2,3369.1,1.083]
[1719986160456,0.04885123,3369.2,3369.1,1.083]
[1719986160653,2.2967,3369.5,3369.1,1.083]
[1719986160856,0.04858429,3369.2,3368.7,2.3566]
[1719986161054,2.2967,3369.5,3369.1,1.083]
[1719986161265,1.55717515,3369.4,3369.1,1.083]
[1719986161491,1.55717515,3369.3,3369.1,1.083]
[1719986161665,1.55717515,3369.2,3369.1,1.083]
[1719986162599,2.2967,3369.5,3369.1,1.083]
[1719986162815,2.53477841,3369.4,3368.4,2.2801]
[1719986162971,1.55710841,3369.3,3369.0,1.083]
[1719986163171,1.55710841,3369.2,3369.0,1.083]
[1719986163377,1.55710841,3369.1,3369.0,1.083]
[1719986163683,0.5141899,3369.2,3369.0,1.083]
[1719986164220,1.55720381,3369.1,3369.0,1.083]
[1719986164398,1.55720381,3369.1,3368.4,2.2801]
[1719986164570,2.9042899,3369.2,3368.7,1.083]
[1719986164571,1.55720381,3369.0,3368.7,1.083]
[1719986164950,0.38819599,3369.1,3368.7,1.083]
[1719986165078,1.55729527,3369.0,3368.7,1.083]
[1719986165284,0.38819599,3369.1,3368.7,1.083]
[1719986165617,1.55736291,3369.0,3368.7,1.083]
[1719986165772,0.38819599,3369.1,3368.7,1.083]
[1719986165967,1.55735898,3369.0,3368.7,1.083]
[1719986166279,0.38819599,3369.1,3368.7,1.083]
[1719986166500,1.55734612,3369.0,3368.7,1.083]
[1719986166700,0.38819599,3369.1,3368.7,1.083]
[1719986167013,1.55729926,3369.0,3368.7,1.083]
[1719986167309,3.45217,3369.4,3368.9,1.083]
[1719986167469,1.55722782,3369.3,3369.1,1.083]
[1719986167669,1.55722782,3369.2,3369.1,1.083]
[1719986167904,2.08920967,3369.2,3369.1,1.083]
[1719986168485,2.13618205,3369.2,3369.1,1.083]
[1719986169104,0.57895423,3369.2,3369.1,1.083]
[1719986169288,2.13605159,3369.2,3369.1,1.083]
[1719986169604,0.57895423,3369.2,3369.1,1.083]
[1719986169974,2.13604481,3369.2,3369.1,1.083]
[1719986172368,2.13569123,3369.2,3369.1,1.083]
[1719986172798,2.13569123,3369.2,3368.9,1.083]
[1719986173118,1.556737,3369.1,3368.9,1.083]
[1719986173675,0.04697238,3369.0,3368.9,1.083]
[1719986174075,3.45217,3369.4,3368.9,1.083]
[1719986174313,0.04697238,3369.0,3368.9,1.083]
[1719986174485,3.45217,3369.4,3368.9,1.083]
[1719986174810,1.55674223,3369.3,3368.9,1.083]
[1719986174988,1.55674223,3369.2,3369.1,1.083]
[1719986175420,0.04697238,3369.2,3369.1,1.083]
[1719986175730,0.31042063,3369.5,3369.1,1.083]
[1719986176026,2.56372212,3369.4,3369.1,1.083]
[1719986176185,1.55673006,3369.3,3369.1,1.083]
[1719986176380,0.31042063,3369.5,3369.2,1.083]
[1719986176716,1.55670731,3369.4,3369.2,1.083]
[1719986176886,1.55670731,3369.3,3369.2,1.083]
[1719986177320,1.55670731,3369.5,3369.2,1.083]
[1719986177486,3.14595731,3369.5,3369.2,1.083]
[1719986177819,1.55670731,3369.4,3369.2,1.083]
[1719986178928,1.58925,3369.5,3369.2,1.083]
[1719986179217,1.55684703,3369.4,3369.2,1.083]
[1719986179394,1.55684703,3369.3,3369.2,1.083]
[1719986181424,7.48,3369.6,3368.9,2.3479]
[1719986181605,7.48,3369.6,3369.5,1.083]
[1719986181919,9.78486426,3369.6,3369.5,1.083]
[1719986182095,9.03686426,3369.6,3369.5,1.083]
[1719986182296,9.03685378,3369.6,3369.5,1.083]
[1719986182816,9.03686505,3369.6,3369.5,1.083]
[1719986183410,9.08245691,3369.6,3369.5,1.083]
[1719986184086,9.08245691,3369.6,3368.9,2.3479]
[1719986184328,7.52559186,3369.6,3369.5,1.083]
[1719986184500,9.83506685,3369.6,3369.5,1.083]
[1719986185320,8.27815105,3369.6,3369.5,1.083]
[1719986185489,9.83504763,3369.6,3369.5,1.083]
[1719986186257,2.35504763,3369.6,3369.5,1.083]
[1719986186424,1.60248844,3369.6,3369.5,1.083]
[1719986187397,0.04559186,3369.6,3369.5,1.083]
[1719986187616,1.5568532,3369.8,3369.5,1.083]
[1719986187810,0.0456803,3369.6,3369.5,1.083]
[1719986188048,3.0,3369.9,3369.5,1.083]
[1719986188247,1.55683265,3369.8,3369.7,1.083]
[1719986188614,1.55682634,3369.8,3369.7,1.083]
[1719986189224,1.28903,3369.9,3369.7,1.083]
[1719986189626,1.55676441,3369.8,3369.7,1.083]
[1719986190145,1.28903,3369.9,3369.7,1.083]
[1719986190343,2.4103,3370.0,3369.7,1.083]
[1719986190531,1.55675009,3369.9,3369.3,2.3566]
[1719986190733,2.4103,3370.0,3369.8,1.083]
[1719986198513,0.04573834,3369.9,3369.8,1.083]
[1719986199631,9.8317,3370.2,3369.8,1.083]
[1719986199957,0.04459834,3369.9,3369.8,1.083]
[1719986200158,0.98317,3370.1,3369.8,1.083]
[1719986200365,0.04459834,3369.9,3369.8,1.083]
[1719986200833,0.98317,3370.1,3369.8,1.083]
[1719986201029,0.98317,3370.1,3370.0,1.083]
[1719986201642,2.53987075,3370.1,3369.8,1.083]
[1719986201824,0.98317,3370.1,3369.8,1.083]
[1719986203868,0.98317,3370.1,3370.0,1.083]
[1719986205135,7.48,3370.2,3370.0,1.083]
[1719986205326,14.62609193,3370.5,3370.0,1.083]
[1719986205327,3.0,3370.5,3370.0,1.083]
[1719986205532,5.4944,3370.6,3370.4,1.083]
[1719986205732,1.55640411,3370.5,3370.4,1.083]
[1719986206065,4.5564376,3370.5,3370.4,1.083]
[1719986206232,6.00952136,3370.5,3370.4,1.083]
[1719986207265,4.45308376,3370.5,3370.4,1.083]
[1719986208159,4.45308376,3370.5,3370.2,1.083]
[1719986209136,4.45308376,3370.5,3370.4,1.083]
[1719986210967,4.45308376,3370.5,3370.2,1.083]
[1719986211176,1.44274838,3370.4,3370.2,1.083]
[1719986211344,1.44274838,3370.4,3369.6,2.3566]
[1719986211345,4.44274838,3370.4,3369.6,2.3566]
[1719986211672,2.3485,3370.3,3370.1,1.083]
[1719986211871,3.02762484,3370.3,3370.1,1.083]
[1719986213463,0.04486084,3370.2,3370.1,1.083]
[1719986213669,3.02762484,3370.3,3370.1,1.083]
[1719986213874,0.04486084,3370.2,3370.1,1.083]
[1719986214040,3.02762484,3370.3,3370.1,1.083]
[1719986214239,0.04486084,3370.2,3370.1,1.083]
[1719986214462,3.02762484,3370.3,3370.1,1.083]
[1719986214776,0.04486084,3370.2,3370.1,1.083]
[1719986215071,3.02762484,3370.3,3370.1,1.083]
[1719986215252,0.04486084,3370.2,3370.1,1.083]
[1719986215572,3.02762484,3370.3,3370.1,1.083]
[1719986215778,0.04486084,3370.2,3370.1,1.083]
[1719986216471,3.02762484,3370.3,3370.1,1.083]
[1719986216772,0.04486084,3370.2,3370.1,1.083]
[1719986217180,3.02762484,3370.3,3370.1,1.083]
[1719986217477,0.79189816,3370.2,3370.1,1.083]
[1719986226708,0.04486084,3370.2,3370.1,1.083]
[1719986226871,2.4521,3370.5,3370.1,1.083]
[1719986227081,1.55644945,3370.4,3370.3,1.083]
[1719986227267,4.55644945,3370.4,3370.3,1.083]
[1719986227691,4.55644945,3370.4,3369.6,2.3566]
[1719986227887,1.55644894,3370.3,3370.1,1.083]
[1719986228091,4.44885495,3370.4,3370.1,1.083]
[1719986228295,1.55645097,3370.3,3370.1,1.083]
[1719986228596,0.04489674,3370.3,3370.2,1.083]
[1719986228765,1.60134589,3370.3,3370.2,1.083]
[1719986228965,2.45157597,3370.3,3370.2,1.083]
[1719986229575,2.45157597,3370.3,3369.6,2.3566]
[1719986229780,0.89512682,3370.3,3370.1,1.083]
[1719986232173,1.55645771,3370.2,3370.1,1.083]
[1719986232592,1.60099445,3370.2,3370.1,1.083]
[1719986232793,2.5362124,3370.2,3370.1,1.083]
[1719986233376,0.97975469,3370.2,3370.1,1.083]
[1719986234091,2.53621337,3370.2,3370.1,1.083]
[1719986236778,2.53635784,3370.2,3370.1,1.083]
[1719986238310,1.60113989,3370.2,3370.1,1.083]
[1719986239893,1.60114469,3370.2,3370.1,1.083]
[1719986242322,1.59939575,3370.2,3370.1,1.083]
[1719986243237,1.59938381,3370.2,3370.1,1.083]
[1719986246352,1.59938381,3370.2,3369.6,2.3566]
[1719986246521,1.55661564,3370.1,3369.6,2.3566]
[1719986246732,1.55661564,3370.0,3369.6,2.3566]
[1719986246938,0.04448951,3370.1,3369.9,1.083]
[1719986247134,1.55662052,3370.0,3369.9,1.083]
[1719986247303,1.60111003,3370.0,3369.9,1.083]
[1719986249702,0.04448951,3370.0,3369.9,1.083]
[1719986249943,1.75860888,3370.4,3369.9,1.083]
[1719986250099,1.60111664,3370.3,3370.2,1.083]
[1719986250304,2.02218753,3370.3,3370.2,1.083]
[1719986253135,0.46556869,3370.3,3370.2,1.083]
[1719986253312,2.02218298,3370.3,3370.2,1.083]
[1719986255113,0.46556869,3370.3,3370.2,1.083]
[1719986255314,2.02216977,3370.3,3370.2,1.083]
[1719986256645,2.02216985,3370.3,3370.2,1.083]
[1719986259843,2.02216503,3370.3,3370.2,1.083]
[1719986260556,2.02216612,3370.3,3370.2,1.083]
[1719986262936,0.46556869,3370.3,3370.2,1.083]
[1719986263132,1.60103073,3370.3,3370.2,1.083]
[1719986265748,1.60103073,3370.3,3370.2,3.4396]
[1719986266321,0.0444978,3370.3,3370.2,3.4396]
[1719986266822,7.48,3370.7,3370.2,3.4396]
[1719986267019,7.48,3370.7,3370.5,1.083]
[1719986267232,9.62340919,3370.7,3370.5,1.083]
[1719986268814,2.311,3370.6,3370.3,1.083]
[1719986273348,0.04468009,3370.5,3370.3,1.083]
[1719986273560,0.04468009,3370.5,3369.6,2.3566]
[1719986273728,0.04468009,3370.5,3370.3,1.083]
[1719986274062,1.24258902,3370.5,3370.3,1.083]
[1719986277556,0.04468009,3370.5,3370.3,1.083]
[1719986279777,7.48,3370.7,3370.3,1.083]
[1719986279987,0.04468009,3370.6,3370.5,1.083]
[1719986281266,2.44218009,3370.6,3370.5,1.083]
[1719986281484,2.44218009,3370.6,3370.3,1.083]
[1719986282163,2.9863981,3370.6,3369.6,2.3442]
[1719986282363,2.9863981,3370.6,3370.1,1.083]
[1719986282850,2.9863981,3370.6,3369.6,2.3442]
[1719986283049,2.9863981,3370.6,3370.1,1.083]
[1719986283247,0.29863981,3370.5,3369.6,2.3442]
[1719986283446,2.4136,3370.4,3369.3,2.3566]
[1719986283698,2.45828009,3370.4,3369.9,1.083]
[1719986286048,2.45828009,3370.4,3370.1,1.083]
[1719986286248,3.56735693,3370.4,3370.1,1.083]
[1719986286489,1.15375693,3370.4,3370.3,1.083]
[1719986286949,0.04468009,3370.4,3370.3,1.083]
[1719986290666,2.91121801,3370.6,3370.3,1.083]
[1719986290854,0.04462486,3370.4,3370.3,1.083]
[1719986291414,2.367,3370.6,3370.3,1.083]
[1719986291565,0.04462486,3370.5,3370.3,1.083]
[1719986294488,19.10609193,3370.8,3370.3,3.3829]
[1719986294692,0.04320918,3370.4,3370.3,2.2999]
[1719986294900,19.10609193,3370.8,3370.3,3.3829]
[1719986295065,19.10609193,3370.8,3370.3,2.2999]
[1719986295066,0.04320918,3370.4,3370.3,2.2999]
[1719986295278,19.10609193,3370.8,3370.3,3.3829]
[1719986295494,0.04320918,3370.4,3370.3,2.2999]
[1719986295694,19.10609193,3370.8,3370.3,3.3829]
[1719986295901,0.04320918,3370.4,3370.3,2.2999]
[1719986296213,0.04320918,3370.4,3370.3,3.3829]
[1719986296378,7.48,3370.8,3370.3,3.3829]
[1719986296584,7.48,3370.8,3370.7,1.083]